Cogmind - Beta 17 @@@ ROGUE MODE // 2026.08.23 @ 13:28:54 Player: BoomBlip Result: Destroyed by RG-E2G(R) with Subdweller Laser Performance ------------- Evolutions (0) 0 Regions Visited (2) 400 Robots Destroyed (12) 60 Value Destroyed (205) 205 Prototype IDs (1) 20 Alien Tech Used (0) 0 Bonus (5000) 5000 TOTAL SCORE: 5685 Bonus ------- Prayed to X0-1V1 5000 Cogmind --------- Core Integrity 0/150 Matter 265/500 Energy 100/100 System Corruption 0% Temperature Cool (6) Movement Core (1400) Ox27 Location -10/Subcaves Parts ------- > --- POWER (1) -------- (None) > --- PROPULSION (2) --- (None) > --- UTILITY (2) ------ Huge Storage Unit > --- WEAPON (2) ------- Assault Rifle Light Assault Rifle > --- INVENTORY (25) --- Compact Wheel Compact Wheel Compact Wheel Light Armor Plating Light Armor Plating Medium Laser Light Assault Rifle Peak State ------------ > --- POWER ------------ Light Nuclear Core > --- PROPULSION ------- Compact Wheel Compact Wheel > --- UTILITY ---------- Huge Storage Unit X0-1V1's Piety Tracker > --- WEAPON ----------- Assault Rifle Light Assault Rifle > --- INVENTORY -------- Light Ion Engine Compact Wheel Compact Wheel Compact Wheel Light Armor Plating Light Armor Plating Medium Laser Light Assault Rifle Light Assault Rifle [Rating: 21] Favorites ----------- Power Light Nuclear Core Engine Ion Engine Power Core Light Nuclear Core Propulsion Compact Wheel Leg Aluminum Leg Wheel Compact Wheel Utility Small Matter Pod Device X0-1V1's Piety Tracker Storage Small Matter Pod Weapon Assault Rifle Ballistic Gun Assault Rifle Build | -11 -10 -10 ------- Run | Yrd Mat Sub Slots Evolved . | . . . Power . | . . . Propulsion . | . . . Utility . | . . . Weapon . | . . . Parts Attached 11 | 1 7 3 Power 2 | . 1 1 Engine 1 | . . 1 Core 1 | . 1 . Reactor . | . . . Propulsion 3 | . 3 . Treads . | . . . Leg . | . . . Wheel 3 | . 3 . Hover . | . . . Flight . | . . . Utility 3 | . 2 1 Device 1 | . . 1 Storage 2 | . 2 . Processor . | . . . Hackware . | . . . Protection . | . . . Artifact . | . . . Weapon 3 | 1 1 1 Energy Gun . | . . . Energy Cannon . | . . . Ballistic Gun 3 | 1 1 1 Ballistic Cannon . | . . . Launcher . | . . . Special Weapon . | . . . Impact Weapon . | . . . Slashing Weapon . | . . . Piercing Weapon . | . . . Special Melee Weapon . | . . . Unidentified Prototypes 1 | . . 1 Parts Lost 6 | . . 6 Power 2 | . . 2 Propulsion 2 | . . 2 Utility 1 | . . 1 Weapon 1 | . . 1 Highest Loss Streak 5 | . . 5 To Critical Strikes . | . . . Average Backups 8 | 6 8 8 Power . | 1 . . Propulsion 3 | 4 3 3 Utility 1 | . 1 2 Weapon 2 | 1 2 2 Tool/Special . | . . . Unused Backups 8 | . 4 4 Power 2 | . 2 . Propulsion . | . . . Utility 4 | . 2 2 Weapon 2 | . . 2 Tool/Special . | . . . Average Slot Usage (%) 97 | . 98 94 Engine 3 | . 3 2 Core 10 | . 10 9 Leg 4 | . 6 . Wheel 22 | . 21 26 Device 2 | . . 12 Storage 24 | . 27 14 Ballistic Gun 28 | . 28 28 Peak Build Rating 21 | 6 11 21 Average Rating 10 | 6 8 18 On Entrance 7 | 6 6 11 Avg Prop Armor Cover (%) . | . . . Naked Turns . | . . . Heaviest Build 89 | 14 89 89 Greatest Support 32 | 20 32 32 Greatest Overweight (x) 2 | . 2 2 Average Overweight (x) . | . . 2 Largest Inventory Capacity 25 | 8 25 25 Average Capacity 16 | 8 13 25 Most Carried 10 | 6 10 10 Average Carried 8 | 6 8 8 Final Capacity 25 | 8 25 25 Final Carried 10 | 6 10 7 Class Distribution -------------------- 100% | Mutant Dominant Class ---------------- Mutant | -10/Materials Mutant | -10/Subcaves Resources | -11 -10 -10 ----------- Run | Yrd Mat Sub Matter Collected 473 | 210 253 10 Remotely . | . . . Salvage Created 384 | . 328 56 Parts 27 | . 24 3 Haulers Intercepted 1 | . 1 . Recyclers Shooed 2 | . 2 . Parts Field Recycled . | . . . Retrieved Matter . | . . . Parts Self-Destructed . | . . . Prevented . | . . . Parts Restored . | . . . Kills | -11 -10 -10 ------- Run | Yrd Mat Sub Combat Hostiles Destroyed 9 | . 8 1 Guns 9 | . 8 1 Classes Destroyed 6 | . 5 1 Hauler 1 | . 1 . Recycler 1 | . 1 . Watcher 1 | . 1 . Swarmer 6 | . 6 . Grunt 2 | . 2 . Subdweller 1 | . . 1 Best Kill Streak 3 | . 3 1 Combat Bots Only 3 | . 3 1 Max Kills in Single Turn 1 | . 1 1 Gunslinging . | . . . Exploded . | . . . Melee . | . . . Uniques/NPCs Destroyed . | . . . Combat | -11 -10 -10 -------- Run | Yrd Mat Sub Hostile Shots Fired 63 | . 29 34 Missed 14 | . 10 4 Hits 49 | . 19 30 Projectile 49 | . 19 30 Critical Strikes 1 | . 1 . Damage Taken 737 | . 170 567 Core 194 | . 36 158 Absorbed by Shields . | . . . Core Remaining (%) 100 | 100 . . Volleys Fired 40 | . 30 10 Largest 2 | . 2 2 Hottest 40 | . 40 40 Shots Fired 80 | . 60 20 Gun 80 | . 60 20 Cannon . | . . . Launcher . | . . . Special . | . . . Kinetic 80 | . 60 20 Thermal . | . . . Explosive . | . . . Electromagnetic . | . . . Robot Hit Streak 9 | . 9 7 Robot Miss Streak 2 | . 2 1 Penetration Max . | . . . Secondary Targets 3 | . 2 1 Max Gunslinging Chain 1 | . 1 1 Shots Hit Robots 60 | . 42 18 Core Hits 23 | . 18 5 Critical Kills . | . . . Critical Parts Destroyed 1 | . 1 . Critical Strikes 1 | . 1 . Destroy 1 | . 1 . Melee Attacks . | . . . Impact . | . . . Slashing . | . . . Piercing . | . . . Sneak Attacks . | . . . Combat Hostiles . | . . . Follow-up Attacks . | . . . Damage Inflicted 695 | . 510 185 Guns 695 | . 510 185 Cannons . | . . . Explosions . | . . . Melee . | . . . Ramming . | . . . Kinetic 695 | . 510 185 Thermal . | . . . Explosive . | . . . Electromagnetic . | . . . Impact . | . . . Slashing . | . . . Piercing . | . . . Highest Corruption . | . . . Average Corruption . | . . . Corruption Purged . | . . . Corruption Blocked . | . . . Overload Shots . | . . . Overflow Damage . | . . . Projectiles . | . . . Explosions . | . . . Melee . | . . . Knockbacks . | . . . Impact . | . . . Kinetic . | . . . Secondary . | . . . Self-Inflicted Damage . | . . . Shots . | . . . Rammed . | . . . Targets Rammed . | . . . Kicked . | . . . Crushed . | . . . Highest Temperature 26 | . 26 . Average Temperature 5 | . 5 . Received Heat Transfer 159 | . 75 84 Siege Activations . | . . . Martial Activations . | . . . Shielding Activations . | . . . Robots Disrupted . | . . . Combat Hostiles . | . . . Robots Corrupted . | . . . Combat Hostiles . | . . . Parts Fried . | . . . Impact Corruptions . | . . . Robots Melted . | . . . Combat Hostiles . | . . . Parts Melted . | . . . Heat Transferred . | . . . Parts Sabotaged . | . . . Parts Stolen . | . . . Parts Stripped . | . . . Power Chain Reactions . | . . . Alert | -11 -10 -10 ------- Run | Yrd Mat Sub Maximum Alert Level . | . . . Low Security (%) 100 | 100 100 . Level 1 . | . . . Level 2 . | . . . Level 3 . | . . . Level 4 . | . . . Level 5 . | . . . High Security . | . . . Max Security . | . . . Peak Influence 148 | . 148 . Initial . | . . . Average 43 | . 43 . Influence Increases 255 | . 255 . Destroy 0b10 Robot/C 160 | . 160 . Destroy 0b10 Robot/NC 15 | . 15 . Destroy Leader 34 | . 34 . Successful Hack 15 | . 15 . Destroy Structure 1 | . 1 . Lose Combat Pursuer 30 | . 30 . Influence Decreases 255 | . 255 . Time Decay 161 | . 161 . Purge Threat 94 | . 94 . Squads Dispatched 2 | . 2 . Investigation 1 | . 1 . Extermination . | . . . Reinforcement 1 | . 1 . Assault . | . . . Garrison . | . . . Intercept . | . . . Searches Triggered . | . . . Construction Impeded . | . . . Haulers Reinforced . | . . . Active Scanning Responses . | . . . Cargo Convoy Interrupts . | . . . Stealth | -11 -10 -10 --------- Run | Yrd Mat Sub Distress Signals . | . . . Communications Jammed . | . . . Distress Signals . | . . . Times Spotted 18 | . 16 2 Peak Tracking Total 4 | . 4 2 Tactical Retreats 2 | . 2 . Traps | -11 -10 -10 ------- Run | Yrd Mat Sub Traps Triggered 1 | . 1 . Indirectly . | . . . Trap Hack Attempts . | . . . Triggered . | . . . Disarmed . | . . . Reprogrammed . | . . . Reused . | . . . Traps Extracted . | . . . Installed . | . . . Triggered . | . . . Machines | -11 -10 -10 ---------- Run | Yrd Mat Sub Machines Disabled . | . . . Max in Single Turn . | . . . Machines Repaired . | . . . Machines Dismantled . | . . . Machines Sabotaged . | . . . Overloaded Fab Kills . | . . . Hacking | -11 -10 -10 --------- Run | Yrd Mat Sub Machines Accessed 6 | . 6 . Terminals 6 | . 6 . Fabricators . | . . . Repair Stations . | . . . Recycling Units . | . . . Scanalyzers . | . . . Garrison Access . | . . . Total Hacks 16 | . 16 . Successful 11 | . 11 . Failed 5 | . 5 . Catastrophic . | . . . Database Lockouts . | . . . Manual 17 | . 17 . Terminals 16 | . 16 . Fabricators . | . . . Repair Stations . | . . . Recycling Units . | . . . Scanalyzers . | . . . Garrison Access . | . . . Terminal Hacks 1 | . 1 . Unreport Threat 1 | . 1 . Fabricator Hacks . | . . . Repair Station Hacks . | . . . Recycling Unit Hacks . | . . . Scanalyzer . | . . . Garrison Access Hacks . | . . . Unauthorized Hacks 10 | . 10 . Terminals 10 | . 10 . Botnet 5 | . 5 . Skim 5 | . 5 . Fabricators . | . . . Repair Stations . | . . . Recycling Units . | . . . Scanalyzers . | . . . Garrison Access . | . . . Data Cores Recovered . | . . . Used . | . . . Hacking Detections 5 | . 5 . Full Trace Events . | . . . Feedback Events . | . . . Feedback Blocked . | . . . Robot Schematics Acquired . | . . . Robots Built . | . . . Authchips . | . . . Time . | . . . Total Robot Build Rating . | . . . Part Schematics Acquired . | . . . Parts Built . | . . . Authchips . | . . . Time . | . . . Total Part Build Rating . | . . . Part Studies Acquired . | . . . Parts Repaired . | . . . Time . | . . . Parts Recycled . | . . . Recycled Matter . | . . . Retrieved Matter . | . . . Retrieved Components . | . . . Parts Scanalyzed . | . . . Part Schematics Acquired . | . . . Parts Damaged . | . . . Bothacking | -11 -10 -10 ------------ Run | Yrd Mat Sub Used RIF Installer . | . . . Robots Hacked . | . . . Non-combat . | . . . Combat . | . . . Robot Hacks Applied . | . . . Relay Couplers Released . | . . . Fabnet Peak Effective % . | . . . Robots Rewired . | . . . Allies Hacked . | . . . Hacks Repelled . | . . . Allies | -11 -10 -10 -------- Run | Yrd Mat Sub Total Allies . | . . . Largest Group . | . . . Highest-Rated Group . | . . . Highest-Rated Ally . | . . . Total Orders . | . . . Ally Attacks . | . . . Total Damage . | . . . Kills . | . . . Allies Corrupted . | . . . Allies Melted . | . . . X0-1V1 Amusement Gains 26 | . 16 10 Good Acts 2 | . . 2 Intel | -11 -10 -10 ------- Run | Yrd Mat Sub Active Infowar (turns) . | . . . Robot Analysis Total . | . . . Derelict Logs Recovered . | . . . Drone Launches . | . . . Drone Recoveries . | . . . Exploration | -11 -10 -10 ------------- Run | Yrd Mat Sub Turns Passed 722 | 7 556 159 Spaces Moved 480 | 5 385 90 Core . | . . . Treads . | . . . Legs 78 | 5 73 . Wheels 402 | . 312 90 Hover . | . . . Flight . | . . . Fastest Speed 100 | 120 100 130 Average Speed 117 | 120 114 130 Slowest Speed 130 | 120 130 130 Overloaded Moves . | . . . Propulsion Burnouts . | . . . Robots Hopped . | . . . Potential Cave-ins . | . . . Cave-ins Triggered . | . . . Exploration Rate (%) 31 | 2 80 11 Regions Visited 2 Branch Regions 1 Pre-discovered Areas . | . . . Known Exits Taken . | . . . Unknown Exits Taken 2 | 1 1 . Scrap Searched . | . . . Spaces Dug . | . . . Terrain Destroyed . | . . . Melee . | . . . Projectile . | . . . AOE . | . . . Terrain Rammed . | . . . Walls Destroyed . | . . . Machines Disabled . | . . . Actions | -11 -10 -10 --------- Run | Yrd Mat Sub Total 564 | 5 443 116 Wait 20 | . 8 12 Move 478 | 4 384 90 Hop . | . . . Pick Up 6 | . 6 . Fast Attach 3 | . 3 . Attach 3 | . . 3 Detach . | . . . Swap 5 | 1 4 . Drop 9 | . 8 1 Fire 40 | . 30 10 Melee . | . . . Ram . | . . . Kick . | . . . Crush . | . . . Escape Stasis . | . . . Rewire . | . . . Trap . | . . . Miscellaneous . | . . . Route ------- -11/Scrapyard -10/Materials (discovered 5 exits: [*Mat x2] / [*Min x2] / [*Sub]) -10/Subcaves History --------- Turn | Location | Event 3 | -11/Scrapyard | Discovered new exit (range 3) 8 | -11/Scrapyard | Entered Materials 149 | -10/Materials | Discovered new exit (range 16) 286 | -10/Materials | Discovered new exit (range 15) 311 | -10/Materials | Build established: Mutant 394 | -10/Materials | Discovered new exit (range 13) 431 | -10/Materials | Discovered new exit (range 7) 504 | -10/Materials | Discovered new exit (range 9) 560 | -10/Materials | Prayed at D.C.S.S. Altar Unit 564 | -10/Materials | Entered Subcaves 692 | -10/Subcaves | Matter capacity permanently improved by X0-1V1 (+200; -100 max core) 714 | -10/Subcaves | Core integrity fell below 50% 720 | -10/Subcaves | Core integrity fell below 20% 723 | -10/Subcaves | Destroyed by RG-E2G(R) with Subdweller Laser Last Messages --------------- LOCATION=UNKNOWN AMBIENT_HEAT=-10 GOAL=ESCAPE 00564_ Dropped Sml. Matter Pod. 00565_ Identified X0-1V1's Piety Tracker. 00566_ Extracted 10 matter. 00665_ Lgt. Nuclear Core destroyed. 00692_ X0-1V1: "Any self-respecting god will have their pound of flesh." (permanent -100 core integrity, +200 matter capacity) 00696_ X0-1V1 reimagines you as a refrigerator in hell. 00699_ Lgt. Ion Engine destroyed. 00705_ Lgt. Assault Rifle destroyed. 00707_ Com. Wheel destroyed. 00711_ X0-1V1's Piety Tracker destroyed. 00711_ X0-1V1 is mildly amused. 00716_ The swirling icy cloud dissipates. 00721_ Com. Wheel destroyed. 00722_ DE-K3J(R) destroyed. 00722_ Switching to secondary target: RG-E2G(R). 00723_ X0-1V1 chuckles heartily! Map ----- +----------------------------------------------------+ | ?????????????????????????????????????????????????? | | ?????????????????????????????????????????????????? | | ?????????????????????????????????????????????????? | | ?????????????????????????????????????????????????? | | ?????????????????????????????????????????????????? | | ?????????????????????????????????????????????????? | | ?????????????????????????????????????????????????? | | ?????????????????????????????????????????????????? | | ?????????????????????????????????????????????????? | | ?????????????????????????????????????????????????? | | ?????????????????????????????????????????????????? | | ?????????????????????????????????????????????????? | | ?????????????????????????????????????????????????? | | ?????????????????????????????????????????????????? | | ?????????????????????????????????????????????????? | | ?????????????????????????????????????????????????? | | ?????????????????????????????????????????????????? | | ?????###????#####????????????????????????????????? | | ###### #???##" #????????????????????????????????? | | # #???? " ##???????????????????????????????? | | #????# " #???????????????????????????????? | | ##??##" #???????????????????????????????? | | ####" #?????####??????????????????????? | | " ## #?????# ##????? ? ????#########? | | "" ##????# ##???# " #???# #? | | """ ####??#@& ##??# " #???# ### | | ######"" ##?##%R #### ##??# ! # # | | ?????#"" " ##?#&* ##" #??### | | ?????##"""####### ### " ?## | | ??????#####?????# ??## | | ????????????????## ##### ## ????# ### | | ?????????????????## ##????## #??????## ## | | ??????????????????## ####???? #??????# | | ????????######?##??## #?????# ##??????## | | ???????? # #??# ######## ###?????## | | ??????? ### #?# ### ##?#### | | ??????? ### ### | | ???????????# ## # | | ???????????# # | | ???????????# # | | ?????????# ##### # | | ????????# ????## ## ## | | ???????? ??????####### ### | | ????????? ?????????????## #?# ## | | ??????????# ???????????????# ## ##### | | ???????????# ????????????????##### #####???? | | ?????????????????????????????????######????????### | | ?????????????????????????????????????????????????? | | ?????????????????????????????????????????????????? | | ?????????????????????????????????????????????????? | +----------------------------------------------------+ Best States ------------- Heat Dissipation 25 Energy Generation 14 Energy Capacity 250 Matter Stores 350 Matter Capacity 500 Sight Range 16 Terrain Scan Density 10 Evasion (%) 55 Item Schematics ----------------- None Robot Schematics ------------------ None Fabricated ------------ Nothing Repaired ---------- Nothing Studied --------- None Alien Tech Used ----------------- None Achievements -------------- None Challenges ------------ None Game ------ Seed SpikedHypertargetingAutobeam Manual? 0 Play Time 00:08:32 Cumulative 132.9 hours Start 2026.08.23 @ 13:18:13 End 2026.08.23 @ 13:28:54 Sessions 1 Manual Loads 0 Difficulty Rogue Special Mode None Game No. 195 Rogue 178 Adventurer 15 Explorer 2 Win Type - Total 2 Types 1/0/0/1/0/0/0/0/0/0 Lore% 23 Gallery% 51 Achievement% 31 Wizard Run 0 Options --------- Layout 0 ASCII 0 Keyboard 0 Movement Arrows Keybinds 0 Fullscreen 1 Font 36/Smallcaps Map View 76x50 Zoom Use 0% Tactical HUD 1 Map Filters NONE Filters NONE Steam 1 RUN: b6a2cb3d-870b-45a7-aa35-da44f181aa99